Workbook

Sheet startup
A1: Heifer Rearing Cost Calculator
A2: Version 26.08, 15.10
B3: This calculator enables you to calculate the cost of rearing heifers through to the point of calving. You will be
B4: provided with a summary of the cash cost of rearing heifers on your system, and the full economic cost.
B6: The calculator is loaded with default values for you, but we suggest you use the actual values for your farm if
B7: they are available.
B9: It is very important that you read the supporting guidance material for this tool before use.
L12: Jun | M12: 30 | N12: 31 | O12: 31 | P12: 30 | Q12: 31 | R12: 30 | S12: 31 | T12: 31 | U12: 28 | V12: 31 | W12: 30 | X12: 31
L13: Jul | M13: 31 | N13: 31 | O13: 30 | P13: 31 | Q13: 30 | R13: 31 | S13: 31 | T13: 28 | U13: 31 | V13: 30 | W13: 31 | X13: 30
B14: AHDB Dairy is a division of the Agricultural and Horticultural Development Board. | L14: Aug
B15: While the Agriculture and Horticulture Development Board seeks to ensure that the information contained within this document is accurate at the time of printing, no warranty is given in respect thereof and, to the maximum extent permitted by law, the Agriculture and Horticulture Development Board accepts no liability for loss, damage or injury howsoever caused (including that caused by negligence) or suffered directly or indirectly in relation to information and opinions contained in or omitted from this document. | L15: Sep | M15: 31 | N15: 30 | O15: 31 | P15: 30 | Q15: 31 | R15: 31 | S15: 28 | T15: 31 | U15: 30 | V15: 31 | W15: 30 | X15: 31
B16: © Agriculture and Horticulture Development Board 2015. All rights reserved. | L16: Oct | M16: 30 | N16: 31 | O16: 30 | P16: 31 | Q16: 31 | R16: 28 | S16: 31 | T16: 30 | U16: 31 | V16: 30 | W16: 31 | X16: 31
L17: Nov | M17: 31 | N17: 30 | O17: 31 | P17: 31 | Q17: 28 | R17: 31 | S17: 30 | T17: 31 | U17: 30 | V17: 31 | W17: 31 | X17: 30
L18: Dec | M18: 30 | N18: 31 | O18: 31 | P18: 28 | Q18: 31 | R18: 30 | S18: 31 | T18: 30 | U18: 31 | V18: 31 | W18: 30 | X18: 31
L19: Jan | M19: 31 | N19: 31 | O19: 28 | P19: 31 | Q19: 30 | R19: 31 | S19: 30 | T19: 31 | U19: 31 | V19: 30 | W19: 31 | X19: 30
L20: Feb | M20: 31 | N20: 28 | O20: 31 | P20: 30 | Q20: 31 | R20: 30 | S20: 31 | T20: 31 | U20: 30 | V20: 31 | W20: 30 | X20: 31
L21: Mar | M21: 28 | N21: 31 | O21: 30 | P21: 31 | Q21: 30 | R21: 31 | S21: 31 | T21: 30 | U21: 31 | V21: 30 | W21: 31 | X21: 31
M22: 31 | N22: 30 | O22: 31 | P22: 30 | Q22: 31 | R22: 31 | S22: 30 | T22: 31 | U22: 30 | V22: 31 | W22: 31 | X22: 28
D36: 12

Sheet defaults
F11: Heifer Rearing Cost Calculator
F13: Below are the default values which will be used in these calculations. If you have your own, more accurate figures,
F14: you can use them here instead.
F16: To recall a default value, click the next to the item heading indicates the default value is in use
F19: Replacement heifer calf value (£/hd) | G19: 200 | J19: Water (£/hd) | K19: 29
F21: Beef calf value (£/hd) | G21: 150 | J21: Electricity (£/hd) | K21: 22
F23: Milk powder (£/T) | G23: 1500 | J23: Consumables (£/hd) | K23: 16.5
F25: Calf starter mix (£/T) | G25: 230 | J25: Interest rate (%) | K25: 4
F27: Rearing concentrate (£/T) | G27: 210 | J27: Land opportunity cost (£/ha) | K27: 265
F29: Feeding straw (£/T) | G29: 41 | J29: AI price (£/service) | K29: 50
F31: Feeding hay (£/T) | G31: 50 | J31: Conception rate to AI (%) | K31: 40
F33: Bedding material (£/T) | G33: 36 | J33: Pregnancy Testing (£/hd) | K33: 10
F35: Disposal cost (£/carcase) | G35: 30 | J35: Milk price (ppl) | K35: 21
F37: Labour cost (£/hr) | G37: 10 | J37: Margin over Puchased Feed (ppl) | K37: 15
F40: Age at first calving (months) | G40: 24 | J40: Mature cow weight (kg) | K40: 650
F42: Age at weaning (weeks) | G42: 8 | J42: Heifer lactation yield (l) | K42: 8000

Sheet forage_cost
F10: Heifer Rearing Cost Calculator
F14: Forage Cost Calculator
F16: Crop Type | H16: Grazing | J16: Grass Silage (3 cuts) | L16: Maize | N16: Wholecrop | P16: Green forage catch crops
F17: Crop Life (years) | H17: 8 | J17: 5 | L17: 1 | N17: 1 | P17: 1
F20: Establishment Costs | H20: £ / Ha. | J20: £ / Ha. | L20: £ / Ha. | N20: £ / Ha. | P20: £ / Ha.
F21: Seed | H21: 150 | J21: 150 | L21: 150 | N21: 59 | P21: 14
F22: Fertilisers | H22: 75 | J22: 75 | L22: 190 | N22: 276 | P22: 150
F23: Sprays& slug pellets | H23: 30 | J23: 30 | L23: 53 | N23: 186 | P23: 15
F24: Labour & Machinery:
F25: Cultivations (plough, p. harrow, roll) | H25: 150 | J25: 150 | L25: 150 | N25: 130 | P25: 45
F26: Sowing | H26: 30 | J26: 30 | L26: 44 | N26: 46 | P26: 25
F27: Fertilising | H27: 14 | J27: 14 | L27: 14 | N27: 28 | P27: 14
F28: Spraying & slug pelleting | H28: 13 | J28: 13 | L28: 26 | N28: 50 | P28: 11
F30: Total Establishment Cost | H30: =SUM(H21:H28) -> 462 | J30: =SUM(J21:J28) -> 462 | L30: =SUM(L21:L28) -> 627 | N30: =SUM(N21:N28) -> 775 | P30: =SUM(P21:P28) -> 274
F31: Establishment cost per year | H31: =H30/H17 -> 57.75 | J31: =J30/J17 -> 92.4 | L31: =L30/L17 -> 627 | N31: =N30/N17 -> 775 | P31: =P30/P17 -> 274
F34: Production Costs
F35: Fertilisers | H35: 200 | J35: 250 | L35: 0 | N35: 0 | P35: 0
F36: Sprays | H36: 0 | J36: 0 | L36: 0 | N36: 0 | P36: 0
F37: Additive | H37: 0 | J37: 0 | L37: 0 | N37: 0 | P37: 0
F38: Sundries | H38: 0 | J38: 20 | L38: 20 | N38: 20 | P38: 0
F39: Labour & Machinery:
F40: Fertilising | H40: 42 | J40: 56 | L40: 0 | N40: 0 | P40: 0
F41: Spraying | H41: 0 | J41: 0 | L41: 0 | N41: 0 | P41: 0
F42: Harvesting | H42: 0 | J42: 450 | L42: 175 | N42: 166 | P42: 0
F44: Total Production Cost | H44: =SUM(H35:H42) -> 242 | J44: =SUM(J35:J42) -> 776 | L44: 195 | N44: 186 | P44: 0
F47: Rent | H47: 180 | J47: 180 | L47: 250 | N47: 250 | P47: 0
F50: Total forage cost per year | H50: =H31+H44+H47 -> 479.75 | J50: =J31+J44+J47 -> 1048.4 | L50: =L31+L44+L47 -> 1072 | N50: =N31+N44+N47 -> 1211 | P50: =P31+P44+P47 -> 274
F53: Tonnes DM produced per Ha. | H53: 9 | J53: 11 | L53: 11 | N53: 11 | P53: 8
F54: Cost per tonne DM | H54: =IF(H53="","",H50/H53) -> 53.30555556 | J54: =IF(J53="","",J50/J53) -> 95.30909091 | L54: =IF(L53="","",L50/L53) -> 97.45454545 | N54: =IF(N53="","",N50/N53) -> 110.0909091 | P54: =IF(P53="","",P50/P53) -> 34.25
F55: Dry Matter % | H55: 18 | J55: 30 | L55: 30 | N55: 45
F56: Cost per tonne fresh | H56: =H54*(H55/100) -> 9.595 | J56: =J54*(J55/100) -> 28.59272727 | L56: =L54*(L55/100) -> 29.23636364 | N56: =N54*(N55/100) -> 49.54090909 | P56: =P54*(P55/100) -> 0
F59: Forage Quallity (populated from user form)
F60: DM | J60: 30 | L60: 33 | N60: 35
F61: CP | J61: 12 | L61: 8 | N61: 8
F62: NDF | J62: 45 | L62: 40 | N62: 45
F63: ME | J63: 11 | L63: 11.3 | N63: 10.5
F66: Forages Grown (populated from T/ha grown above)
F67: Grass Silage | G67: =IF($J$53="","","Yes") -> Yes
F68: Maize Silage | G68: =IF($L$53="","","Yes") -> Yes
F69: Wholecrop Silage | G69: =IF($N$53="","","Yes") -> Yes

Sheet birth_wean
F11: Heifer Rearing Cost Calculator
F15: =" Birth to Weaning ("& INT(G82) &" kg at weaning)" -> Birth to Weaning (81 kg at weaning)
F17: Based on the information you have entered, we have calculated your birth to weaning period costs as follows:
L18: Costs
N29: Source
J31: Quantity | L31: £
G32: Calf value | L32: =defaults!G19 -> 200
G34: Milk Powder | J34: =LEFT(K42,3) & " kg" -> 0 kg | L34: =IF(form_data!E16="",birth_wean!L42,(form_data!E16/1000)*defaults!G23) -> 0
H35: Age | I35: powder/day (g) | J35: days | K35: powder (kg) | L35: Total £
H36: =form_data!$C$21 -> 1-9 days | I36: =IF(form_data!F21="",0,form_data!F21*form_data!G21) -> 0 | J36: =form_data!$C$9 -> 9.333333333 | K36: =I36*J36/1000 -> 0
H37: =form_data!$C$22 -> 10-18 days | I37: =IF(form_data!F22="",0,form_data!F22*form_data!G22) -> 0 | J37: =form_data!$C$9 -> 9.333333333 | K37: =I37*J37/1000 -> 0
H38: =form_data!$C$23 -> 19-27 days | I38: =IF(form_data!F23="",0,form_data!F23*form_data!G23) -> 0 | J38: =form_data!$C$9 -> 9.333333333 | K38: 0
H39: =form_data!$C$24 -> 28-36 days | I39: =IF(form_data!F24="",0,form_data!F24*form_data!G24) -> 0 | J39: =form_data!$C$9 -> 9.333333333 | K39: 0
H40: =form_data!$C$25 -> 37-45 days | I40: =IF(form_data!F25="",0,form_data!F25*form_data!G25) -> 0 | J40: =form_data!$C$9 -> 9.333333333 | K40: 0
H41: =form_data!$C$26 -> 46-54 days | I41: =IF(form_data!F26="",0,form_data!F26*form_data!G26) -> 0 | J41: =form_data!$C$9 -> 9.333333333 | K41: 0
H42: Total | K42: =IF(form_data!E16="",SUM(K36:K41),form_data!E16) -> 0 | L42: =K42/1000*defaults!G23 -> 0
G44: Whole Milk | J44: =LEFT(K52,3)&" litres" -> 0 litres | L44: =IF(form_data!F16="",birth_wean!L52,form_data!F16*(defaults!K35/100)) -> 0
H45: Age | I45: litres/day | J45: days | K45: total litres | L45: Total £
H46: =form_data!$C$21 -> 1-9 days | I46: =form_data!H21 ->  | J46: =form_data!$C$9 -> 9.333333333 | K46: =IF(I46="",0,I46*J46) -> 0
H47: =form_data!$C$22 -> 10-18 days | I47: =form_data!H22 ->  | J47: =form_data!$C$9 -> 9.333333333 | K47: =IF(I47="",0,I47*J47) -> 0
H48: =form_data!$C$23 -> 19-27 days | J48: =form_data!$C$9 -> 9.333333333 | K48: 0
H49: =form_data!$C$24 -> 28-36 days | J49: =form_data!$C$9 -> 9.333333333 | K49: 0
H50: =form_data!$C$25 -> 37-45 days | J50: =form_data!$C$9 -> 9.333333333 | K50: 0
H51: =form_data!$C$26 -> 46-54 days | J51: =form_data!$C$9 -> 9.333333333 | K51: 0
H52: Total | K52: =IF(form_data!F16="",SUM(K46:K51),form_data!F16) -> 0 | L52: =K52*(defaults!K35/100) -> 0
G54: Calf starter | J54: =LEFT(K62,3) & " kg" -> 0 kg | L54: =IF(form_data!G16="",birth_wean!L62,form_data!G16*defaults!G25/1000) -> 0
H55: Age | I55: kg/day | J55: days | K55: total kg | L55: Total £
H56: =form_data!$C$21 -> 1-9 days | I56: =form_data!I21 ->  | J56: =form_data!$C$9 -> 9.333333333 | K56: =IF(I56="",0,I56*J56) -> 0
H57: =form_data!$C$22 -> 10-18 days | I57: =form_data!I22 ->  | J57: =form_data!$C$9 -> 9.333333333 | K57: =IF(I57="",0,I57*J57) -> 0
H58: =form_data!$C$23 -> 19-27 days | I58: =form_data!I23 ->  | J58: =form_data!$C$9 -> 9.333333333 | K58: 0
H59: =form_data!$C$24 -> 28-36 days | I59: =form_data!I24 ->  | J59: =form_data!$C$9 -> 9.333333333 | K59: 0
H60: =form_data!$C$25 -> 37-45 days | I60: =form_data!I25 ->  | J60: =form_data!$C$9 -> 9.333333333 | K60: 0
H61: =form_data!$C$26 -> 46-54 days | I61: =form_data!I26 ->  | J61: =form_data!$C$9 -> 9.333333333 | K61: 0
H62: Total | K62: =IF(form_data!G16="",SUM(K56:K61),(form_data!G16)) -> 0 | L62: =(K62/1000)*defaults!G25 -> 0
G64: Bedding | J64: =LEFT(K72,3) & " kg" -> 65. kg | L64: =IF(form_data!D16="",birth_wean!L72,form_data!D16*defaults!G33/1000) -> 2.352
H65: Age | I65: kg/day | J65: days | K65: total kg | L65: Total £
H66: =form_data!$C$21 -> 1-9 days | I66: =IF(form_data!D21=TRUE,1,"0") -> 1 | J66: =form_data!$C$9 -> 9.333333333 | K66: =I66*J66 -> 9.333333333
H67: =form_data!$C$22 -> 10-18 days | I67: =IF(form_data!D22=TRUE,1,"0") -> 1 | J67: =form_data!$C$9 -> 9.333333333 | K67: =I67*J67 -> 9.333333333
H68: =form_data!$C$23 -> 19-27 days | I68: =IF(form_data!D23=TRUE,1,"0") -> 1 | J68: =form_data!$C$9 -> 9.333333333 | K68: 9.333333333
H69: =form_data!$C$24 -> 28-36 days | I69: 1.25 | J69: =form_data!$C$9 -> 9.333333333 | K69: 11.66666667
H70: =form_data!$C$25 -> 37-45 days | I70: 1.25 | J70: =form_data!$C$9 -> 9.333333333 | K70: 11.66666667
H71: =form_data!$C$26 -> 46-54 days | I71: 1.5 | J71: =form_data!$C$9 -> 9.333333333 | K71: 14
H72: Total | K72: =IF(form_data!D16="",SUM(K66:K71),(form_data!D16)) -> 65.33333333 | L72: =(K72/1000)*defaults!G33 -> 2.352
G75: Feed straw | J75: =LEFT(K83,3)&" kg" -> 31. kg | L75: =IF(form_data!H16="",birth_wean!L83,form_data!H16*defaults!G29/1000) -> 1.291547833
F76: age (wks) | G76: lwt | H76: Age | I76: kg/day | J76: days | K76: total kg | L76: Total £
F77: =INT((J77/7)+0.35) -> 1 | G77: =(VLOOKUP(F77,lookup_tables!A12:C116,2,TRUE))*defaults!$K$40/100 -> 46.15 | H77: =form_data!$C$21 -> 1-9 days | I77: 0 | J77: =form_data!$C$9 -> 9.333333333 | K77: =I77*J77 -> 0
F78: =INT((J78*2/7)) -> 2 | G78: =(VLOOKUP(F78,lookup_tables!A13:C117,2,TRUE))*defaults!$K$40/100 -> 52 | H78: =form_data!$C$22 -> 10-18 days | I78: =IF(form_data!J22=TRUE,IF(form_data!L22=TRUE,G78*0.005,G78*0.01),"0") -> 0.52 | J78: =form_data!$C$9 -> 9.333333333 | K78: =I78*J78 -> 4.853333333
F79: =INT((J79*3/7)) -> 4 | G79: =(VLOOKUP(F79,lookup_tables!A14:C118,2,TRUE))*defaults!$K$40/100 -> 63.7 | H79: =form_data!$C$23 -> 19-27 days | I79: =IF(form_data!J23=TRUE,IF(form_data!L23=TRUE,G79*0.005,G79*0.01),"0") -> 0.637 | J79: =form_data!$C$9 -> 9.333333333 | K79: 5.945333333
F80: =INT((J80*4/7)) -> 5 | G80: =(VLOOKUP(F80,lookup_tables!A15:C119,2,TRUE))*defaults!$K$40/100 -> 68.0875 | H80: =form_data!$C$24 -> 28-36 days | I80: =IF(form_data!J24=TRUE,IF(form_data!L24=TRUE,G80*0.005,G80*0.01),"0") -> 0.680875 | J80: =form_data!$C$9 -> 9.333333333 | K80: 6.354833333
F81: =INT((J81*5/7)) -> 6 | G81: =(VLOOKUP(F81,lookup_tables!A16:C120,2,TRUE))*defaults!$K$40/100 -> 72.475 | H81: =form_data!$C$25 -> 37-45 days | I81: =IF(form_data!J25=TRUE,IF(form_data!L25=TRUE,G81*0.005,G81*0.01),"0") -> 0.72475 | J81: =form_data!$C$9 -> 9.333333333 | K81: 6.764333333
F82: =INT((J82*6/7)) -> 8 | G82: =(VLOOKUP(F82,lookup_tables!A17:C121,2,TRUE))*defaults!$K$40/100 -> 81.25 | H82: =form_data!$C$26 -> 46-54 days | I82: =IF(form_data!J26=TRUE,IF(form_data!L26=TRUE,G82*0.005,G82*0.01),"0") -> 0.8125 | J82: =form_data!$C$9 -> 9.333333333 | K82: 7.583333333
H83: Total | K83: =IF(form_data!H16="",SUM(K77:K82),(form_data!H16)) -> 31.50116667 | L83: =(K83/1000)*defaults!G29 -> 1.291547833
G85: Feed hay | J85: =LEFT(K93,3)&" kg" -> 0 kg | L85: =IF(form_data!I16="",birth_wean!L93,form_data!I16*defaults!G31/1000) -> 0
F86: age (wks) | G86: lwt | H86: Age | I86: kg/day | J86: days | K86: total kg | L86: Total £
F87: =INT((J87/7)+0.35) -> 1 | G87: =wean_conception!N2 -> 0 | H87: =form_data!$C$21 -> 1-9 days | I87: 0 | J87: =form_data!$C$9 -> 9.333333333 | K87: =I87*J87 -> 0
F88: =INT((J88*2/7)) -> 2 | G88: =(VLOOKUP(F88,lookup_tables!A13:C117,2,TRUE))*defaults!$K$40/100 -> 52 | H88: =form_data!$C$22 -> 10-18 days | I88: =IF(form_data!L22=TRUE,IF(form_data!J22=TRUE,G88*0.005,G88*0.01),"0") -> 0 | J88: =form_data!$C$9 -> 9.333333333 | K88: =I88*J88 -> 0
F89: =INT((J89*3/7)) -> 4 | G89: =(VLOOKUP(F89,lookup_tables!A14:C118,2,TRUE))*defaults!$K$40/100 -> 63.7 | H89: =form_data!$C$23 -> 19-27 days | I89: =IF(form_data!L23=TRUE,IF(form_data!J23=TRUE,G89*0.005,G89*0.01),"0") -> 0 | J89: =form_data!$C$9 -> 9.333333333 | K89: 0
F90: =INT((J90*4/7)) -> 5 | G90: =(VLOOKUP(F90,lookup_tables!A15:C119,2,TRUE))*defaults!$K$40/100 -> 68.0875 | H90: =form_data!$C$24 -> 28-36 days | I90: =IF(form_data!L24=TRUE,IF(form_data!J24=TRUE,G90*0.005,G90*0.01),"0") -> 0 | J90: =form_data!$C$9 -> 9.333333333 | K90: 0
F91: =INT((J91*5/7)) -> 6 | G91: =(VLOOKUP(F91,lookup_tables!A16:C120,2,TRUE))*defaults!$K$40/100 -> 72.475 | H91: =form_data!$C$25 -> 37-45 days | I91: =IF(form_data!L25=TRUE,IF(form_data!J25=TRUE,G91*0.005,G91*0.01),"0") -> 0 | J91: =form_data!$C$9 -> 9.333333333 | K91: 0
F92: =INT((J92*6/7)) -> 8 | G92: =(VLOOKUP(F92,lookup_tables!A17:C121,2,TRUE))*defaults!$K$40/100 -> 81.25 | H92: =form_data!$C$26 -> 46-54 days | I92: =IF(form_data!L26=TRUE,IF(form_data!J26=TRUE,G92*0.005,G92*0.01),"0") -> 0 | J92: =form_data!$C$9 -> 9.333333333 | K92: 0
H93: Total | K93: =IF(form_data!I16="",SUM(K87:K92),(form_data!I16)) -> 0 | L93: =(K93/1000)*defaults!G31 -> 0
G95: Vet & Med, inc Vaccinations | L95: 12.5
G97: Sundries (milk mixing equipment, water heating) | L97: =defaults!K23/3 -> 5.5
G99: Mortality Rate | K99: 10.5
G101: Mortality Cost (incl carcass disposal) | L101: =(defaults!$G$19+(SUM(L34,L44,L54,L64,L75,L85,L95,L97)))*(birth_wean!K99/100)+defaults!G35*birth_wean!K99/100 -> 26.42257252
G102: Water | L102: =defaults!K19/(defaults!G40*4.3)*defaults!G42 -> 2.248062016
G103: Power & Machinery (incl electricity, excluding forage costs) | L103: 10
G104: Labour (includes bedding and cleaning out) | L104: 25
F106: Feed Inputs Check:
H108: Mature cow body weight | I108: =defaults!K40 -> 650 | J108: Age at wean | K108: =defaults!G42 -> 8 | L108: Avg % of mature weight in period | O108: =(VLOOKUP(8,lookup_tables!A12:C116,2,TRUE)+VLOOKUP(1,lookup_tables!A12:C116,2,TRUE))/2 -> 9.8
F110: Average Weight in this period | J110: =I108*(O108/100) -> 63.7 | K110: kg
F112: Average feed/day (kgDM) | J112: =((K42*0.95)+(K52*0.13)+(K62*0.87)+(K83*0.85)+(K93*0.85))/(defaults!$G$42*7) -> 0.4781427083 | K112: Assumed 13% solids in whole milk. Conc 87% DM, Straw & hay 85% DM, milk powder 95%
F114: Target at 3% BW (kgDM) | J114: =J110*0.03 -> 1.911
F116: Intake indicator | J116: =IF(J112>(J114*1.1),"High",IF(J112<(J114*0.9),"Low","OK")) -> Low | K116: If this cell = High or Low then a message needs to be shown to the user
G139: Rearing cost for this period | L139: =SUM(L34:L104) -> 88.9577302
G140: Rearing cost per day in this period | L140: =L139/(defaults!G42*7) -> 1.588530897
G141: Total cost to this stage including calf value | L141: =L139+L32 -> 288.9577302

Sheet wean_conception
F11: Heifer Rearing Cost Calculator
F15: ="Weaning to Conception (" & INT(N23) & "kg to " & INT(N24) & " kg)" -> Weaning to Conception (81kg to 380 kg)
F17: Based on the information you have entered, we have calculated your weaning to conception period costs as follows:
L18: costs
G21: Age at Conception | N21: =(defaults!G40*4.33)-(274/7) -> 64.77714286 | O21: wks
G22: Number of weeks in Weaning to Conception Group | N22: =N21-defaults!G42 -> 56.77714286 | O22: wks
G23: weight at weaning | N23: =(VLOOKUP(defaults!G42,lookup_tables!$A$12:$C$116,3,TRUE)) -> 81.25 | O23: kg
G24: ="weight at " & INT(N21+0.5) & " weeks" -> weight at 65 weeks | N24: =(VLOOKUP(N21,lookup_tables!A14:C118,3,TRUE)) -> 380.4125 | O24: kg
G25: average daily weight gain required | N25: =(N24-N23)/N22/7 -> 0.7527236816 | O25: kg/d
G32: Forage cost | H32: T Fresh | I32: T DM | L32: £
G33: Grass Silage | H33: =IF(I33="",0,I33/forage_cost!J60*100) -> 0.7388956571 | I33: =IF(form_data!E116>0,form_data!E116,X57*1.15) -> 0.2216686971 | L33: =IF(I33="",0,I33*forage_cost!J54) -> 21.12704201
G34: Maize Silage | H34: =IF(I34="",0,I34/forage_cost!J61*100) -> 0 | I34: =IF(form_data!F116>0,form_data!F116,AB57*1.15) -> 0 | L34: =IF(I34="",0,I34*forage_cost!J55) -> 0
G35: Wholecrop | H35: =IF(I35="",0,I35/forage_cost!J62*100) -> 0 | I35: =IF(form_data!G116>0,form_data!G116,AF57*1.15) -> 0 | L35: =IF(I35="",0,I35*forage_cost!J56) -> 0
G36: Grazing | I36: =IF(form_data!I116>0,form_data!I116,AH57*1.15) -> 0 | L36: =I36*forage_cost!H54 -> 0
G37: Green crop | I37: =IF(form_data!J116>0,form_data!J116,AJ57*1.15) -> 0 | L37: =I37*forage_cost!P54 -> 0
G38: Total forage costs | L38: =SUM(L33:L37) -> 21.12704201
AG48: if both green crop and grazing assume 50% of each
G49: Avg Age (wks) | H49: Bodyweight | I49: DMI | J49: Conc DM | K49: WT gain | L49: MEm Req | M49: MEg | N49: Total ME | O49: ME from conc | P49: Me Req from forage | Q49: combined Forage ME | R49: Forage DMI | S49: Weighted DM | T49: Total Forage | U49: Grass Silage | Y49: Maize | AC49: Wholecrop | AG49: Grazing | AI49: Green Crop
H50: kg | I50: kg | J50: kg/d | K50: kg/d | L50: MJ/d | M50: MJ/d | N50: MJ/d | O50: MJ | P50: MJ | Q50: MJ/kg DM | R50: Req kg | S50: of all forage | T50: Fresh Weight | U50: % | V50: kg Fresh | W50: kgDM | X50: Total T | Y50: % | Z50: kg fresh | AA50: kgDM | AB50: Total T | AC50: % | AD50: kg Fresh | AE50: kgDM | AF50: T Total | AG50: kg dm/d | AH50: t dm | AJ50: t dm
G51: =AVERAGE(form_data!B124,form_data!B125) -> 12.5 | H51: =VLOOKUP(G51,lookup_tables!$A$12:$C$116,3,TRUE) -> 105.95 | I51: =H51*0.03 -> 3.1785 | J51: =J63*0.87 -> 0 | K51: =$N$25 -> 0.7527236816 | L51: =1.05*(0.53*(H51/1.08)^0.67)/((0.35*(11/18)+0.503)) -> 16.76629283 | M51: =1.05*$N$25*(6.28+0.0188*H51)/(1-0.3*$N$25)/0.5 -> 16.88940997 | N51: =L51+M51 -> 33.65570281 | O51: =J51*12.5 -> 0 | P51: =N51-O51 -> 33.65570281 | Q51: =form_data!F121*forage_cost!$J$60/100*forage_cost!$J$63/forage_cost!$J$60+form_data!G121*forage_cost!$L$60/100*forage_cost!$L$63/forage_cost!$L$60+form_data!H121*forage_cost!$N$60/100*forage_cost!$N$63/forage_cost!$N$60 -> 11 | R51: =IF(Q51=0,0,P51/Q51) -> 3.059609346 | S51: =(forage_cost!$J$60*(wean_conception!U51/100))+(forage_cost!$L$60*(wean_conception!Y51/100))+(forage_cost!$N$60*(wean_conception!AC51/100)) -> 30 | T51: =IF(S51=0,0,R51/(S51/100)) -> 10.19869782 | U51: =IF(form_data!F121="",0,form_data!F121) -> 100 | V51: =$T51*(U51/100) -> 10.19869782 | W51: =V51*(forage_cost!$J$60/100) -> 3.059609346 | X51: =(W51*K63)/1000 -> 0.1927553888 | Y51: =IF(form_data!G121="",0,form_data!G121) -> 0 | Z51: =T51*(Y51/100) -> 0 | AA51: =Z51*(forage_cost!$L$60/100) -> 0 | AB51: =(AA51*K63)/1000 -> 0 | AC51: =IF(form_data!H121="",0,form_data!H121) -> 0 | AD51: =$T51*(AC51/100) -> 0 | AE51: =AD51*(forage_cost!$N$60/100) -> 0 | AF51: =(AE51*K63)/1000 -> 0 | AG51: =IF(form_data!J121=FALSE,0,IF(form_data!L121=FALSE,P51/11,P51/2/11)) -> 0 | AH51: =AG51*K63/1000 -> 0 | AI51: =IF(form_data!L121=FALSE,0,IF(form_data!J121=FALSE,P51/11,P51/2/11)) -> 0 | AJ51: =AI51*K63/1000 -> 0
G52: =AVERAGE(form_data!B125,form_data!B126) -> 21.5 | H52: =VLOOKUP(G52,lookup_tables!$A$12:$C$116,3,TRUE) -> 154.05 | I52: =H52*0.03 -> 4.6215 | J52: =J64*0.87 -> 0 | K52: =$N$25 -> 0.7527236816 | L52: =1.05*(0.53*(H52/1.08)^0.67)/((0.35*(11/18)+0.503)) -> 21.54530984 | M52: =1.05*$N$25*(6.28+0.0188*H52)/(1-0.3*$N$25)/0.5 -> 18.73576081 | N52: =L52+M52 -> 40.28107065 | O52: =J52*12.5 -> 0 | P52: =N52-O52 -> 40.28107065 | Q52: =form_data!F122*forage_cost!$J$60/100*forage_cost!$J$63/forage_cost!$J$60+form_data!G122*forage_cost!$L$60/100*forage_cost!$L$63/forage_cost!$L$60+form_data!H122*forage_cost!$N$60/100*forage_cost!$N$63/forage_cost!$N$60 -> 0 | R52: =IF(Q52=0,0,P52/Q52) -> 0 | S52: =(forage_cost!$J$60*(wean_conception!U52/100))+(forage_cost!$L$60*(wean_conception!Y52/100))+(forage_cost!$N$60*(wean_conception!AC52/100)) -> 0 | T52: =IF(S52=0,0,R52/(S52/100)) -> 0 | U52: =IF(form_data!F122="",0,form_data!F122) -> 0 | V52: 0 | W52: =V52*(forage_cost!$J$60/100) -> 0 | X52: 0 | Y52: =IF(form_data!G122="",0,form_data!G122) -> 0 | Z52: =T52*(Y52/100) -> 0 | AA52: =Z52*(forage_cost!$L$60/100) -> 0 | AB52: 0 | AC52: =IF(form_data!H122="",0,form_data!H122) -> 0 | AD52: 0 | AE52: =AD52*(forage_cost!$N$60/100) -> 0 | AF52: 0 | AG52: =IF(form_data!J122=FALSE,0,IF(form_data!L122=FALSE,P52/11,P52/2/11)) -> 0 | AH52: =AG52*K64/1000 -> 0 | AI52: =IF(form_data!L122=FALSE,0,IF(form_data!J122=FALSE,P52/11,P52/2/11)) -> 0 | AJ52: =AI52*K64/1000 -> 0
G53: =AVERAGE(form_data!B126,form_data!B127) -> 30.5 | H53: =VLOOKUP(G53,lookup_tables!$A$12:$C$116,3,TRUE) -> 202.9625 | I53: 6.088875 | J53: 0 | K53: 0.7527236816 | L53: 25.91719472 | M53: 20.61330001 | N53: 46.53049473 | O53: 0 | P53: 46.53049473 | Q53: =form_data!F123*forage_cost!$J$60/100*forage_cost!$J$63/forage_cost!$J$60+form_data!G123*forage_cost!$L$60/100*forage_cost!$L$63/forage_cost!$L$60+form_data!H123*forage_cost!$N$60/100*forage_cost!$N$63/forage_cost!$N$60 -> 0 | R53: 0 | S53: =(forage_cost!$J$60*(wean_conception!U53/100))+(forage_cost!$L$60*(wean_conception!Y53/100))+(forage_cost!$N$60*(wean_conception!AC53/100)) -> 0 | T53: =IF(S53=0,0,R53/(S53/100)) -> 0 | U53: =IF(form_data!F123="",0,form_data!F123) -> 0 | V53: 0 | W53: =V53*(forage_cost!$J$60/100) -> 0 | X53: 0 | Y53: =IF(form_data!G123="",0,form_data!G123) -> 0 | Z53: 0 | AA53: =Z53*(forage_cost!$L$60/100) -> 0 | AB53: 0 | AC53: =IF(form_data!H123="",0,form_data!H123) -> 0 | AD53: 0 | AE53: =AD53*(forage_cost!$N$60/100) -> 0 | AF53: 0 | AG53: =IF(form_data!J123=FALSE,0,IF(form_data!L123=FALSE,P53/11,P53/2/11)) -> 0 | AH53: 0 | AI53: =IF(form_data!L123=FALSE,0,IF(form_data!J123=FALSE,P53/11,P53/2/11)) -> 0 | AJ53: 0
G54: =AVERAGE(form_data!B127,form_data!B128) -> 39.5 | H54: =VLOOKUP(G54,lookup_tables!$A$12:$C$116,3,TRUE) -> 241.15 | I54: 7.2345 | J54: 0 | K54: 0.7527236816 | L54: 29.09054593 | M54: 22.07915287 | N54: 51.16969881 | O54: 0 | P54: 51.16969881 | Q54: =form_data!F124*forage_cost!$J$60/100*forage_cost!$J$63/forage_cost!$J$60+form_data!G124*forage_cost!$L$60/100*forage_cost!$L$63/forage_cost!$L$60+form_data!H124*forage_cost!$N$60/100*forage_cost!$N$63/forage_cost!$N$60 -> 0 | R54: 0 | S54: =(forage_cost!$J$60*(wean_conception!U54/100))+(forage_cost!$L$60*(wean_conception!Y54/100))+(forage_cost!$N$60*(wean_conception!AC54/100)) -> 0 | T54: 0 | U54: =IF(form_data!F124="",0,form_data!F124) -> 0 | V54: 0 | W54: =V54*(forage_cost!$J$60/100) -> 0 | X54: 0 | Y54: =IF(form_data!G124="",0,form_data!G124) -> 0 | Z54: 0 | AA54: =Z54*(forage_cost!$L$60/100) -> 0 | AB54: 0 | AC54: =IF(form_data!H124="",0,form_data!H124) -> 0 | AD54: 0 | AE54: =AD54*(forage_cost!$N$60/100) -> 0 | AF54: 0 | AG54: =IF(form_data!J124=FALSE,0,IF(form_data!L124=FALSE,P54/11,P54/2/11)) -> 0 | AH54: 0 | AI54: =IF(form_data!L124=FALSE,0,IF(form_data!J124=FALSE,P54/11,P54/2/11)) -> 0 | AJ54: 0
G55: =AVERAGE(form_data!B128,form_data!B129) -> 48.5 | H55: =VLOOKUP(G55,lookup_tables!$A$12:$C$116,3,TRUE) -> 283.4 | I55: 8.502 | J55: 0 | K55: 0.7527236816 | L55: 32.41360236 | M55: 23.70094753 | N55: 56.11454988 | O55: 0 | P55: 56.11454988 | Q55: =form_data!F125*forage_cost!$J$60/100*forage_cost!$J$63/forage_cost!$J$60+form_data!G125*forage_cost!$L$60/100*forage_cost!$L$63/forage_cost!$L$60+form_data!H125*forage_cost!$N$60/100*forage_cost!$N$63/forage_cost!$N$60 -> 0 | R55: 0 | S55: =(forage_cost!$J$60*(wean_conception!U55/100))+(forage_cost!$L$60*(wean_conception!Y55/100))+(forage_cost!$N$60*(wean_conception!AC55/100)) -> 0 | T55: 0 | U55: =IF(form_data!F125="",0,form_data!F125) -> 0 | V55: 0 | W55: =V55*(forage_cost!$J$60/100) -> 0 | X55: 0 | Y55: =IF(form_data!G125="",0,form_data!G125) -> 0 | Z55: 0 | AA55: =Z55*(forage_cost!$L$60/100) -> 0 | AB55: 0 | AC55: =IF(form_data!H125="",0,form_data!H125) -> 0 | AD55: 0 | AE55: =AD55*(forage_cost!$N$60/100) -> 0 | AF55: 0 | AG55: =IF(form_data!J125=FALSE,0,IF(form_data!L125=FALSE,P55/11,P55/2/11)) -> 0 | AH55: 0 | AI55: =IF(form_data!L125=FALSE,0,IF(form_data!J125=FALSE,P55/11,P55/2/11)) -> 0 | AJ55: 0
G56: =AVERAGE(form_data!B129,form_data!B130) -> 53 | H56: =VLOOKUP(G56,lookup_tables!$A$12:$C$116,3,TRUE) -> 318.9875 | I56: 9.569625 | J56: 0 | K56: 0.7527236816 | L56: 35.08712295 | M56: 25.06699764 | N56: 60.15412059 | O56: 0 | P56: 60.15412059 | Q56: =form_data!F126*forage_cost!$J$60/100*forage_cost!$J$63/forage_cost!$J$60+form_data!G126*forage_cost!$L$60/100*forage_cost!$L$63/forage_cost!$L$60+form_data!H126*forage_cost!$N$60/100*forage_cost!$N$63/forage_cost!$N$60 -> 0 | R56: 0 | S56: =(forage_cost!$J$60*(wean_conception!U56/100))+(forage_cost!$L$60*(wean_conception!Y56/100))+(forage_cost!$N$60*(wean_conception!AC56/100)) -> 0 | T56: 0 | U56: =IF(form_data!F126="",0,form_data!F126) -> 0 | V56: 0 | W56: =V56*(forage_cost!$J$60/100) -> 0 | X56: 0 | Y56: =IF(form_data!G126="",0,form_data!G126) -> 0 | Z56: 0 | AA56: =Z56*(forage_cost!$L$60/100) -> 0 | AB56: 0 | AC56: =IF(form_data!H126="",0,form_data!H126) -> 0 | AD56: 0 | AE56: =AD56*(forage_cost!$N$60/100) -> 0 | AF56: 0 | AG56: =IF(form_data!J126=FALSE,0,IF(form_data!L126=FALSE,P56/11,P56/2/11)) -> 0 | AH56: 0 | AI56: =IF(form_data!L126=FALSE,0,IF(form_data!J126=FALSE,P56/11,P56/2/11)) -> 0 | AJ56: 0
G57: TOTAL | X57: =SUM(X51:X56) -> 0.1927553888 | AB57: =SUM(AB51:AB56) -> 0 | AF57: =SUM(AF51:AF56) -> 0 | AH57: =SUM(AH51:AH56) -> 0 | AJ57: =SUM(AJ51:AJ56) -> 0
G60: Concentrates | I60: =IF(form_data!H116>0,form_data!H116*1000,L69) -> 0 | J60: kg | L60: =M69 -> 0
I62: Age (wks) | J62: kg/day | K62: days | L62: total kg | M62: Total £
I63: =form_data!C121 -> 8 - 17 | J63: =IF(form_data!I121="",0,form_data!I121) -> 0 | K63: =form_data!$B$123*7 -> 63 | L63: =IF(J63="",0,J63*K63) -> 0
I64: =form_data!C122 -> 17 - 26 | J64: =IF(form_data!I122="",0,form_data!I122) -> 0 | K64: =form_data!$B$123*7 -> 63 | L64: =IF(J64="",0,J64*K64) -> 0
I65: =form_data!C123 -> 26 - 35 | J65: =IF(form_data!I123="",0,form_data!I123) -> 0 | K65: =form_data!$B$123*7 -> 63 | L65: 0
I66: =form_data!C124 -> 35 - 44 | J66: =IF(form_data!I124="",0,form_data!I124) -> 0 | K66: =form_data!$B$123*7 -> 63 | L66: 0
I67: =form_data!C125 -> 44 - 53 | J67: =IF(form_data!I125="",0,form_data!I125) -> 0 | K67: =form_data!$B$123*7 -> 63 | L67: 0
I68: =form_data!C126 -> 53 - Conception | J68: =IF(form_data!I126="",0,form_data!I126) -> 0 | K68: =form_data!$B$123*7 -> 63 | L68: 0
I69: Total | L69: =IF(form_data!H116=0,SUM(L63:L68),(form_data!H116*1000)) -> 0 | M69: =(L69/1000)*defaults!G27 -> 0
G73: Bedding cost | I73: =J82 -> 1102.5 | J73: kg | L73: =K82 -> 39.69
G75: Age | H75: kg/day | I75: days | J75: total kg | K75: Total £
G76: =I63 -> 8 - 17 | H76: 2 | I76: =K63 -> 63 | J76: =H76*I76 -> 126
G77: =I64 -> 17 - 26 | H77: 2.5 | I77: =K64 -> 63 | J77: =H77*I77 -> 157.5
G78: 26 - 35 | H78: 3 | I78: 63 | J78: 189
G79: 35 - 44 | H79: 3 | I79: 63 | J79: 189
G80: 44 - 53 | H80: 3.5 | I80: 63 | J80: 220.5
G81: 53 - Conception | H81: 3.5 | I81: 63 | J81: 220.5
G82: Total | J82: =IF(form_data!D116=0,SUM(J76:J81),(form_data!D116*1000)) -> 1102.5 | K82: =(J82/1000)*defaults!$G$33 -> 39.69
G109: Vet & Med, inc Vacc | L109: 12
G110: AI costs | L110: =(defaults!K29/defaults!K31*100) +defaults!K33 -> 135
G111: Sundries | L111: =defaults!K23/3 -> 5.5
G113: Mortality Rate | J113: 3.4 | K113: %
G115: Mortality Cost (incl carcass disposal) | L115: =((SUM(L38:L111)*0.5)+birth_wean!L141)*J113/100 + defaults!G35*wean_conception!J113/100 -> 17.20489371
G116: Water | L116: =defaults!K19/(defaults!G40*4.3)*wean_conception!N22 -> 15.95481728
G117: Power & Machinery (incl electricity, excluding forage costs) | L117: 15
G118: Labour (includes bedding and cleaning out) | L118: 75
G157: Total cost of this period | L157: =SUM(L38,L60,L73,L109,L110,L111,L115,L116,L117,L118) -> 336.476753
G159: Total cost per day in this period | L159: =L157/(N22*7) -> 0.8466101877
G160: Total cost to this stage including calf value | L160: =L157+birth_wean!L141 -> 625.4344832

Sheet conception_calving
F11: Heifer Rearing Cost Calculator
F15: ="Conception to Calving (" & INT(M19) & "kg to " & INT(M20) & "kg)" -> Conception to Calving (380kg to 586kg)
F17: Based on the information you have entered, we have calculated your conception to calving period costs as follows:
K19: Wt entering this group | M19: =wean_conception!N24 -> 380.4125 | N19: kg
G20: Age at Calving | I20: =defaults!G40*4.33 -> 103.92 | J20: weeks | K20: Wt at calving | M20: =(VLOOKUP(I20,lookup_tables!A12:C116,3,TRUE)) -> 586.1171875 | N20: kg | O20: DLW in this group | Q20: =(M20-M19)/(I21*7) -> 0.7507470347
G21: Weeks in group | I21: =274/7 -> 39.14285714
G22: Weeks in late preg | I22: =I21/3 -> 13.04761905 | J22: =I20-I22 -> 90.87238095 | K22: weeks to | L22: =I20 -> 103.92 | M22: weeks = | N22: =AVERAGE(L22,J22) -> 97.39619048 | O22: Avg Age Late Preg
G23: Weeks in mid preg | I23: =I21/3 -> 13.04761905 | J23: =L23-I23 -> 77.8247619 | K23: weeks to | L23: =J22 -> 90.87238095 | M23: weeks = | N23: =AVERAGE(L23,J23) -> 84.34857143 | O23: Avg Age Mid Preg
G24: Weeks in early preg | I24: =I21/3 -> 13.04761905 | J24: =L24-I24 -> 64.77714286 | K24: weeks to | L24: =J23 -> 77.8247619 | M24: weeks = | N24: =AVERAGE(L24,J24) -> 71.30095238 | O24: Avg Age Early Preg
L32: costs
G33: Forage cost | I33: T Fresh | J33: T DM | L33: £
G34: Grass Silage | I34: =J34/forage_cost!J60*100 -> 9.997805213 | J34: =IF(form_data!E216>0,form_data!E216*forage_cost!J60/100,Z45*1.15) -> 2.999341564 | L34: =J34*forage_cost!J54 -> 285.8645178
G35: Maize Silage | I35: =J35/forage_cost!L60*100 -> 0 | J35: =IF(form_data!F216>0,form_data!F216*forage_cost!L60/100,AD45*1.15) -> 0 | L35: =J35*forage_cost!L54 -> 0
G36: Wholecrop | I36: =J36/forage_cost!N60*100 -> 0 | J36: =IF(form_data!G216>0,form_data!G216*forage_cost!N60/100,AH45*1.15) -> 0 | L36: =J36*forage_cost!N54 -> 0
G37: Grazing | J37: =IF(form_data!I216>0,form_data!I216,AJ45*1.15) -> 0.683410935 | L37: =J37*forage_cost!H54 -> 36.42959956
G38: Green crop | J38: =IF(form_data!J216>0,form_data!J216/100,AL45*1.15) -> 0 | L38: =J38*forage_cost!P54 -> 0
G39: Total forage costs | L39: =SUM(L34:L38) -> 322.2941174 | AI39: if both green crop and grazing assume 50% of each
H40: Avg Age | I40: Bodyweight | J40: DMI | K40: DMI from | L40: WT gain | M40: MEm Req | N40: MEg | O40: Total ME | P40: ME from conc | Q40: Me Req from forage | R40: combined Forage ME | T40: Forage DMI | U40: Weighted DM | V40: Total Forage | W40: Grass Silage | AA40: Maize | AE40: Wholecrop | AI40: Grazing | AK40: Green Crop
H41: (wks) | I41: kg | J41: kg | K41: conc kg | L41: kg/d | M41: MJ/d | N41: MJ/d | O41: MJ/d | P41: MJ | Q41: MJ | R41: MJ/kg DM | T41: Req kg | U41: of all forage | V41: Fresh Weight | W41: % | X41: kg Fresh | Y41: kgDM | Z41: Total T | AA41: % | AB41: kg fresh | AC41: kgDM | AD41: Total T | AE41: % | AF41: kg Fresh | AG41: kgDM | AH41: T Total | AI41: kg dm/d | AJ41: t dm | AL41: t dm
H42: =N24 -> 71.30095238 | I42: =VLOOKUP(H42,lookup_tables!$A$12:$C$116,3,TRUE) -> 425.1 | J42: =I42*0.025 -> 10.6275 | K42: =form_data!I221 *0.87 -> 0 | L42: =$Q$20 -> 0.7507470347 | M42: =1.05*(0.53*(I42/1.08)^0.67)/((0.35*(11/18)+0.503)) -> 42.53127905 | N42: =1.05*$Q$20*(6.28+0.0188*I42)/(1-0.3*$Q$20)/0.5 -> 29.04143074 | O42: =M42+N42 -> 71.57270979 | P42: =K42*12.5 -> 0 | Q42: =O42-P42 -> 71.57270979 | R42: =form_data!F221*forage_cost!$J$60/100*forage_cost!$J$63/forage_cost!$J$60+form_data!G221*forage_cost!$L$60/100*forage_cost!$L$63/forage_cost!$L$60+form_data!H221*forage_cost!$N$60/100*forage_cost!$N$63/forage_cost!$N$60 -> 0 | T42: =IF(R42=0,0,Q42/R42) -> 0 | U42: =(forage_cost!$J$60*(W42/100))+(forage_cost!$L$60*(AA42/100))+(forage_cost!$N$60*(AE42/100)) -> 0 | V42: =IF(U42=0,0,T42/(U42/100)) -> 0 | W42: =IF(form_data!F221="",0,form_data!F221) -> 0 | X42: =$V42*(W42/100) -> 0 | Y42: =X42*(forage_cost!$J$60/100) -> 0 | Z42: =(Y42/1000)*($I24*7) -> 0 | AA42: =IF(form_data!G221="",0,form_data!G221) -> 0 | AB42: =V42*(AA42/100) -> 0 | AC42: =AB42*(forage_cost!$L$60/100) -> 0 | AD42: =(AC42/1000)*($I24*7) -> 0 | AE42: =IF(form_data!H221="",0,form_data!H221) -> 0 | AF42: =$V42*(AE42/100) -> 0 | AG42: =AF42*(forage_cost!$N$60/100) -> 0 | AH42: =(AG42/1000)*($I24*7) -> 0 | AI42: =IF(form_data!J221=FALSE,0,IF(form_data!L221=FALSE,Q42/11,Q42/2/11)) -> 6.506609981 | AJ42: =AI42*I22*7/1000 -> 0.5942703783 | AK42: =IF(form_data!L221=FALSE,0,IF(form_data!J221=FALSE,Q42/11,Q42/2/11)) -> 0 | AL42: =AK42*I22*7/1000 -> 0
H43: =N23 -> 84.34857143 | I43: =VLOOKUP(H43,lookup_tables!$A$12:$C$116,3,TRUE) -> 492.2125 | J43: =I43*0.025 -> 12.3053125 | K43: =form_data!I222 *0.87 -> 0 | L43: =$Q$20 -> 0.7507470347 | M43: =1.05*(0.53*(I43/1.08)^0.67)/((0.35*(11/18)+0.503)) -> 46.92039625 | N43: =1.05*$Q$20*(6.28+0.0188*I43)/(1-0.3*$Q$20)/0.5 -> 31.60885765 | O43: =M43+N43 -> 78.5292539 | P43: =K43*12.5 -> 0 | Q43: =O43-P43 -> 78.5292539 | R43: =form_data!F222*forage_cost!$J$60/100*forage_cost!$J$63/forage_cost!$J$60+form_data!G222*forage_cost!$L$60/100*forage_cost!$L$63/forage_cost!$L$60+form_data!H222*forage_cost!$N$60/100*forage_cost!$N$63/forage_cost!$N$60 -> 2.75 | T43: =IF(R43=0,0,Q43/R43) -> 28.55609233 | U43: =(forage_cost!$J$60*(W43/100))+(forage_cost!$L$60*(AA43/100))+(forage_cost!$N$60*(AE43/100)) -> 7.5 | V43: =IF(U43=0,0,T43/(U43/100)) -> 380.7478977 | W43: =IF(form_data!F222="",0,form_data!F222) -> 25 | X43: =$V43*(W43/100) -> 95.18697442 | Y43: =X43*(forage_cost!$J$60/100) -> 28.55609233 | Z43: =(Y43/1000)*($I23*7) -> 2.608123099 | AA43: =IF(form_data!G222="",0,form_data!G222) -> 0 | AB43: =V43*(AA43/100) -> 0 | AC43: =AB43*(forage_cost!$L$60/100) -> 0 | AD43: =(AC43/1000)*($I23*7) -> 0 | AE43: =IF(form_data!H222="",0,form_data!H222) -> 0 | AF43: =$V43*(AE43/100) -> 0 | AG43: =AF43*(forage_cost!$N$60/100) -> 0 | AH43: =(AG43/1000)*($I23*7) -> 0 | AI43: =IF(form_data!J222=FALSE,0,IF(form_data!L222=FALSE,Q43/11,Q43/2/11)) -> 0 | AJ43: =AI43*I23*7/1000 -> 0 | AK43: =IF(form_data!L222=FALSE,0,IF(form_data!J222=FALSE,Q43/11,Q43/2/11)) -> 0 | AL43: =AK43*I23*7/1000 -> 0
H44: =N22 -> 97.39619048 | I44: =VLOOKUP(H44,lookup_tables!$A$12:$C$116,3,TRUE) -> 557.5375 | J44: =I44*0.025 -> 13.9384375 | K44: =form_data!I223 *0.87 -> 0 | L44: 0.7507470347 | M44: 51.00620817 | N44: 34.10790273 | O44: 85.11411091 | P44: 0 | Q44: 85.11411091 | R44: =form_data!F223*forage_cost!$J$60/100*forage_cost!$J$63/forage_cost!$J$60+form_data!G223*forage_cost!$L$60/100*forage_cost!$L$63/forage_cost!$L$60+form_data!H223*forage_cost!$N$60/100*forage_cost!$N$63/forage_cost!$N$60 -> 0 | T44: 0 | U44: =(forage_cost!$J$60*(W44/100))+(forage_cost!$L$60*(AA44/100))+(forage_cost!$N$60*(AE44/100)) -> 0 | V44: =IF(U44=0,0,T44/(U44/100)) -> 0 | W44: =IF(form_data!F223="",0,form_data!F223) -> 0 | X44: =$V44*(W44/100) -> 0 | Y44: =X44*(forage_cost!$J$60/100) -> 0 | Z44: =(Y44/1000)*($I22*7) -> 0 | AA44: =IF(form_data!G223="",0,form_data!G223) -> 0 | AB44: 0 | AC44: =AB44*(forage_cost!$L$60/100) -> 0 | AD44: =(AC44/1000)*($I22*7) -> 0 | AE44: =IF(form_data!H223="",0,form_data!H223) -> 0 | AF44: =$V44*(AE44/100) -> 0 | AG44: =AF44*(forage_cost!$N$60/100) -> 0 | AH44: =(AG44/1000)*($I22*7) -> 0 | AI44: =IF(form_data!J223=FALSE,0,IF(form_data!L223=FALSE,Q44/11,Q44/2/11)) -> 0 | AJ44: 0 | AK44: =IF(form_data!L223=FALSE,0,IF(form_data!J223=FALSE,Q44/11,Q44/2/11)) -> 0 | AL44: 0
G45: TOTAL | Z45: =SUM(Z42:Z44) -> 2.608123099 | AD45: =SUM(AD42:AD44) -> 0 | AH45: =SUM(AH42:AH44) -> 0 | AJ45: =SUM(AJ42:AJ44) -> 0.5942703783 | AL45: =SUM(AL42:AL44) -> 0
G53: Concentrates | I53: =J59 -> 0 | J53: kg | L53: =K59 -> 0
G55: Stage | H55: kg/day | I55: days | J55: total kg | K55: Total £
G56: Early | H56: =IF(form_data!I221="",0,form_data!I221) -> 0 | I56: =I24*7 -> 91.33333333 | J56: =IF(H56="",0,H56*I56) -> 0
G57: Mid | H57: =IF(form_data!I222="",0,form_data!I222) -> 0 | I57: =I23*7 -> 91.33333333 | J57: =IF(H57="",0,H57*I57) -> 0
G58: Late | H58: =IF(form_data!I223="",0,form_data!I223) -> 0 | I58: =I22*7 -> 91.33333333 | J58: 0
G59: Total | J59: =IF(form_data!H216=0,SUM(J56:J58),(form_data!H216*1000)) -> 0 | K59: =(J59/1000)*defaults!G27 -> 0
G61: Bedding Cost | L61: =K67 -> 27.948
AE62: Age | AF62: kg/day | AG62: days | AH62: total kg | AI62: Total £
G63: Stage | H63: kg/day | I63: days | J63: total kg | K63: Total £ | AE63: =form_data!Y121 -> 0 | AF63: =IF(form_data!AE121="",0,form_data!AE121) -> 0 | AG63: =form_data!$B$123*7 -> 63 | AH63: =IF(AF63="",0,AF63*AG63) -> 0
G64: Early | H64: 4 | I64: =I22*7 -> 91.33333333 | J64: =H64*I64 -> 365.3333333 | AE64: =form_data!Y122 -> 0 | AF64: =IF(form_data!AE122="",0,form_data!AE122) -> 0 | AG64: =form_data!$B$123*7 -> 63 | AH64: =IF(AF64="",0,AF64*AG64) -> 0
G65: Mid | H65: 4.5 | I65: =I23*7 -> 91.33333333 | J65: =H65*I65 -> 411 | AE65: =form_data!Y123 -> 0 | AF65: =IF(form_data!AE123="",0,form_data!AE123) -> 0 | AG65: =form_data!$B$123*7 -> 63 | AH65: 0
G66: Late | H66: =IF(form_data!D223=TRUE,5,"0") -> 0 | I66: 91.33333333 | J66: 0 | AE66: =form_data!Y124 -> 0 | AF66: =IF(form_data!AE124="",0,form_data!AE124) -> 0 | AG66: =form_data!$B$123*7 -> 63 | AH66: 0
G67: Total | J67: =IF(form_data!D216=0,SUM(J64:J66),(form_data!D216*1000)) -> 776.3333333 | K67: =(J67/1000)*defaults!$G$33 -> 27.948 | AE67: =form_data!Y125 -> 0 | AF67: =IF(form_data!AE125="",0,form_data!AE125) -> 0 | AG67: =form_data!$B$123*7 -> 63 | AH67: 0
AE68: =form_data!Y126 -> 0 | AF68: =IF(form_data!AE126="",0,form_data!AE126) -> 0 | AG68: =form_data!$B$123*7 -> 63 | AH68: 0
AE69: Total | AH69: =IF(form_data!AD116="",SUM(AH63:AH68),(form_data!AD1116*1000)) -> 0 | AI69: =(AH69/1000)*defaults!AC27 -> 0
G96: Vet & Med, inc Vacc | L96: 20
G102: Sundries | L102: =defaults!K23/3 -> 5.5
G113: Mortality Rate | J113: 4.2 | K113: %
G115: Mortality Cost (incl carcass disposal) | L115: =((SUM(L39:L102)*0.5)+birth_wean!L141+wean_conception!L157)*J113/100 + defaults!G35*conception_calving!J113/100 -> 35.46612982
G116: Water | L116: =defaults!K19/(defaults!G40*4.3)*conception_calving!I21 -> 10.99944629
G117: Power & Machinery (incl electricity, excluding forage costs) | L117: 15
G118: Labour (includes bedding and cleaning out) | L118: 120
G122: Total cost of this period | L122: =SUM(L39,L53,L61,L96,L102,L115:L118) -> 557.2076935
G124: Total cost per day in this period | L124: =L122/(I21*7) -> 2.033604721
G126: Total cost to this stage including calf value | L126: =L122+wean_conception!L160 -> 1182.642177

Sheet summary
F11: Heifer Rearing Cost Calculator
F31: Summary of Costs
G34: Standard | I34: Your Farm
G35: Calving at 24 Months | I35: £
F36: Cash Cost
F38: Birth to Weaning ( incl. calf value) | G38: 288.96 | I38: =birth_wean!L141 -> 288.9577302
F40: Weaning to Conception | G40: 274.63 | I40: =wean_conception!L157 -> 336.476753
F42: Conception to Calving | G42: 197.01 | I42: =conception_calving!L122 -> 557.2076935
F44: Total Cash Cost | G44: 760.6 | I44: =SUM(I38:I42) -> 1182.642177
F49: Please note this is only a cash cost, not a full economic cost. A full economic cost would take
F50: account of deprecation on buildings, opportunity costs etc.
F62: In an AHDB Dairy funded a study carried out in 2013 on 102 farms across England, Scotland and Wales the full economic cost of rearing heifers was found to be between £1,073 and £3,070 with the average at £1,819. This included interest and opportunity costs of £442 per heifer reared
F78: AHDB Dairy is a division of the Agricultural and Horticultural Development Board.
F79: While the Agriculture and Horticulture Development Board seeks to ensure that the information contained within this document is accurate at the time of printing, no warranty is given in respect thereof and, to the maximum extent permitted by law, the Agriculture and Horticulture Development Board accepts no liability for loss, damage or injury howsoever caused (including that caused by negligence) or suffered directly or indirectly in relation to information and opinions contained in or omitted from this document.
F80: © Agriculture and Horticulture Development Board 2015. All rights reserved.

Sheet blank
A1: birth_wean

Sheet form_data
B7: Age Bracket Calculation
B8: Age at weaning | C8: =defaults!G42*7 -> 56 | D8: days
B9: = | C9: =C8/6 -> 9.333333333 | D9: days per period in b>w period
B10: = | C10: =ROUND(C9,0) -> 9 | D10: days per period in b>w period rounded
C13: Data populated from birth to weaning form
D15: Bedding (kg) | E15: Milk Replacer (kg) | F15: Whole Milk (L) | G15: Conc (kg) | H15: Feed Straw (kg) | I15: Feed Hay (kg)
C16: Total
C20: Age | D20: Bedding Yes | E20: Bedding No | F20: Milk Replacer L | G20: Mixing Rate (g/l) | H20: Whole Milk (L) | I20: Conc (kg) | J20: Straw Yes | K20: Straw No | L20: Hay Yes | M20: Hay No
C21: ="1-" & C10 & " days" -> 1-9 days | D21: TRUE | E21: FALSE | G21: 0 | J21: TRUE | K21: FALSE | L21: FALSE | M21: TRUE
C22: =C10+1&"-"&C10*2&" days" -> 10-18 days | D22: TRUE | E22: FALSE | G22: 0 | J22: TRUE | K22: FALSE | L22: FALSE | M22: TRUE
C23: =C10*2+1&"-"&C10*3&" days" -> 19-27 days | D23: TRUE | E23: FALSE | G23: 0 | J23: TRUE | K23: FALSE | L23: FALSE | M23: TRUE
C24: =C10*3+1&"-"&C10*4&" days" -> 28-36 days | D24: TRUE | E24: FALSE | G24: 0 | J24: TRUE | K24: FALSE | L24: FALSE | M24: TRUE
C25: =C10*4+1&"-"&C10*5&" days" -> 37-45 days | D25: TRUE | E25: FALSE | G25: 0 | J25: TRUE | K25: FALSE | L25: FALSE | M25: TRUE
C26: =C10*5+1&"-"&C10*6&" days" -> 46-54 days | D26: TRUE | E26: FALSE | G26: 0 | J26: TRUE | K26: FALSE | L26: FALSE | M26: TRUE
L101: =defaults!$G$19+(SUM(L34,L44,L54,L64,L75,L85,L95,L97))*(birth_wean!K99/100) -> 200
C113: Data populated from weaning to conception form
D115: Bedding (T) | E115: Grass Silage (T) | F115: Maize (T) | G115: Wholecrop (T) | H115: Conc (T) | I115: Grazing (T) | J115: Green crop (T)
C116: Total | D116: 0 | E116: 0 | F116: 0 | G116: 0 | H116: 0 | I116: 0 | J116: 0
A120: Age Bracket Calcualtion | C120: Age (wks) | D120: Bedding Yes | E120: Bedding No | F120: Grass Silage % | G120: Maize % | H120: WC % | I120: Conc kg | J120: Grazing Yes | K120: Grazing No | L120: Green Crop Yes | M120: Green Crop No | P120: Forage Check
A121: total wks | B121: =wean_conception!N22 -> 56.77714286 | C121: =B124 & " - " & B125 -> 8 - 17 | D121: TRUE | E121: FALSE | F121: 100 | G121: 0 | H121: 0 | J121: FALSE | K121: TRUE | L121: FALSE | M121: TRUE | P121: =F121+G121+H121 -> 100 | Q121: =IF(P121=0,"",IF(P121=100,"","Error")) -> 
A122: wks/period | B122: =B121/6 -> 9.462857143 | C122: 17 - 26 | D122: TRUE | E122: FALSE | F122: 0 | G122: 0 | H122: 0 | J122: FALSE | K122: TRUE | L122: FALSE | M122: TRUE | P122: =F122+G122+H122 -> 0 | Q122: =IF(P122=0,"",IF(P122=100,"","Error")) -> 
A123: round | B123: =ROUND(B122,0) -> 9 | C123: 26 - 35 | D123: TRUE | E123: FALSE | F123: 0 | G123: 0 | H123: 0 | J123: FALSE | K123: TRUE | L123: FALSE | M123: TRUE | P123: 0
A124: Age 1 | B124: =defaults!G42 -> 8 | C124: 35 - 44 | D124: TRUE | E124: FALSE | F124: 0 | G124: 0 | H124: 0 | J124: FALSE | K124: TRUE | L124: FALSE | M124: TRUE | P124: 0
A125: Age 2 | B125: =B124+B123 -> 17 | C125: 44 - 53 | D125: TRUE | E125: FALSE | F125: 0 | G125: 0 | H125: 0 | J125: FALSE | K125: TRUE | L125: FALSE | M125: TRUE | P125: 0
A126: Age 3 | B126: =B125+$B$123 -> 26 | C126: 53 - Conception | D126: TRUE | E126: FALSE | F126: 0 | G126: 0 | H126: 0 | J126: FALSE | K126: TRUE | L126: FALSE | M126: TRUE | P126: 0
A127: Age 4 | B127: =B126+$B$123 -> 35
A128: Age 5 | B128: 44
A129: Age 6 | B129: 53
A130: Age 7 | B130: Conception
C213: Data populated from conception to calving form
D215: Bedding (T) | E215: Grass Sil (T) | F215: Maize (T) | G215: WC (T) | H215: Conc (T) | I215: Grazing (T) | J215: Green Crop (T)
C216: Total | D216: 0 | E216: 0 | F216: 0 | G216: 0 | H216: 0 | I216: 0 | J216: 0
C220: Stage | D220: Bedding Yes | E220: Bedding No | F220: Grass Silage % | G220: Maize % | H220: WC % | I220: Conc kg | J220: Grazing Yes | K220: Grazing No | L220: Green crop Yes | M220: Green crop No | P220: Forage Check
C221: Early Preg | D221: FALSE | E221: FALSE | F221: 0 | G221: 0 | H221: 0 | I221: 0 | J221: TRUE | K221: FALSE | L221: FALSE | M221: FALSE | P221: =F221+G221+H221 -> 0 | Q221: =IF(P221=0,"",IF(P221=100,"","Error")) -> 
C222: Mid Preg | D222: FALSE | E222: FALSE | F222: 25 | G222: 0 | H222: 0 | I222: 0 | J222: FALSE | K222: FALSE | L222: FALSE | M222: FALSE | P222: =F222+G222+H222 -> 25 | Q222: =IF(P222=0,"",IF(P222=100,"","Error")) -> Error
C223: Late Preg | D223: FALSE | E223: FALSE | F223: 0 | G223: 0 | H223: 0 | I223: 0 | J223: FALSE | K223: FALSE | L223: FALSE | M223: FALSE | P223: 0

Sheet lookup_tables
A1: Lookup Tables
A9: 1: % of mature weight with age
A11: age (wks) | B11: % | C11: weight kg
A12: 0 | B12: 6.2 | C12: =defaults!$K$40*(lookup_tables!B12/100) -> 40.3
A13: 1 | B13: 7.1 | C13: =defaults!$K$40*(lookup_tables!B13/100) -> 46.15
A14: 2 | B14: 8 | C14: =defaults!$K$40*(lookup_tables!B14/100) -> 52
A15: 3 | B15: 8.9 | C15: =defaults!$K$40*(lookup_tables!B15/100) -> 57.85
A16: 4 | B16: 9.8 | C16: =defaults!$K$40*(lookup_tables!B16/100) -> 63.7
A17: 5 | B17: 10.475 | C17: =defaults!$K$40*(lookup_tables!B17/100) -> 68.0875
A18: 6 | B18: 11.15 | C18: =defaults!$K$40*(lookup_tables!B18/100) -> 72.475
A19: 7 | B19: =AVERAGE(B18,B20) -> 11.825 | C19: =defaults!$K$40*(lookup_tables!B19/100) -> 76.8625
A20: 8 | B20: 12.5 | C20: =defaults!$K$40*(lookup_tables!B20/100) -> 81.25
A21: 9 | B21: =AVERAGE(B20,B22) -> 13.45 | C21: =defaults!$K$40*(lookup_tables!B21/100) -> 87.425
A22: 10 | B22: 14.4 | C22: =defaults!$K$40*(lookup_tables!B22/100) -> 93.6
A23: 11 | B23: 15.35 | C23: =defaults!$K$40*(lookup_tables!B23/100) -> 99.775
A24: 12 | B24: 16.3 | C24: =defaults!$K$40*(lookup_tables!B24/100) -> 105.95
A25: 13 | B25: 17.15 | C25: =defaults!$K$40*(lookup_tables!B25/100) -> 111.475
A26: 14 | B26: 18 | C26: =defaults!$K$40*(lookup_tables!B26/100) -> 117
A27: 15 | B27: =AVERAGE(B28,B26) -> 18.85 | C27: =defaults!$K$40*(lookup_tables!B27/100) -> 122.525
A28: 16 | B28: 19.7 | C28: =defaults!$K$40*(lookup_tables!B28/100) -> 128.05
A29: 17 | B29: =AVERAGE(B30,B28) -> 20.7 | C29: =defaults!$K$40*(lookup_tables!B29/100) -> 134.55
A30: 18 | B30: 21.7 | C30: =defaults!$K$40*(lookup_tables!B30/100) -> 141.05
A31: 19 | B31: 21.7 | C31: =defaults!$K$40*(lookup_tables!B31/100) -> 141.05
A32: 20 | B32: =AVERAGE(B33,B31) -> 22.7 | C32: =defaults!$K$40*(lookup_tables!B32/100) -> 147.55
A33: 21 | B33: 23.7 | C33: =defaults!$K$40*(lookup_tables!B33/100) -> 154.05
A34: 22 | B34: =AVERAGE(B35,B33) -> 24.7 | C34: =defaults!$K$40*(lookup_tables!B34/100) -> 160.55
A35: 23 | B35: 25.7 | C35: =defaults!$K$40*(lookup_tables!B35/100) -> 167.05
A36: 24 | B36: 25.7 | C36: =defaults!$K$40*(lookup_tables!B36/100) -> 167.05
A37: 25 | B37: =AVERAGE(B38,B36) -> 26.7 | C37: =defaults!$K$40*(lookup_tables!B37/100) -> 173.55
A38: 26 | B38: 27.7 | C38: =defaults!$K$40*(lookup_tables!B38/100) -> 180.05
A39: 27 | B39: 28.875 | C39: =defaults!$K$40*(lookup_tables!B39/100) -> 187.6875
A40: 28 | B40: 28.875 | C40: =defaults!$K$40*(lookup_tables!B40/100) -> 187.6875
A41: 29 | B41: 30.05 | C41: =defaults!$K$40*(lookup_tables!B41/100) -> 195.325
A42: 30 | B42: 31.225 | C42: =defaults!$K$40*(lookup_tables!B42/100) -> 202.9625
A43: 31 | B43: 31.225 | C43: =defaults!$K$40*(lookup_tables!B43/100) -> 202.9625
A44: 32 | B44: 32.4 | C44: =defaults!$K$40*(lookup_tables!B44/100) -> 210.6
A45: 33 | B45: 32.4 | C45: =defaults!$K$40*(lookup_tables!B45/100) -> 210.6
A46: 34 | B46: 33.575 | C46: =defaults!$K$40*(lookup_tables!B46/100) -> 218.2375
A47: 35 | B47: 33.575 | C47: =defaults!$K$40*(lookup_tables!B47/100) -> 218.2375
A48: 36 | B48: 34.75 | C48: =defaults!$K$40*(lookup_tables!B48/100) -> 225.875
A49: 37 | B49: 35.925 | C49: =defaults!$K$40*(lookup_tables!B49/100) -> 233.5125
A50: 38 | B50: 35.925 | C50: =defaults!$K$40*(lookup_tables!B50/100) -> 233.5125
A51: 39 | B51: 37.1 | C51: =defaults!$K$40*(lookup_tables!B51/100) -> 241.15
A52: 40 | B52: 38.4 | C52: =defaults!$K$40*(lookup_tables!B52/100) -> 249.6
A53: 41 | B53: 38.4 | C53: =defaults!$K$40*(lookup_tables!B53/100) -> 249.6
A54: 42 | B54: 39.7 | C54: =defaults!$K$40*(lookup_tables!B54/100) -> 258.05
A55: 43 | B55: 41 | C55: =defaults!$K$40*(lookup_tables!B55/100) -> 266.5
A56: 44 | B56: 41 | C56: =defaults!$K$40*(lookup_tables!B56/100) -> 266.5
A57: 45 | B57: 42.3 | C57: =defaults!$K$40*(lookup_tables!B57/100) -> 274.95
A58: 46 | B58: 42.3 | C58: =defaults!$K$40*(lookup_tables!B58/100) -> 274.95
A59: 47 | B59: 43.6 | C59: =defaults!$K$40*(lookup_tables!B59/100) -> 283.4
A60: 48 | B60: 43.6 | C60: =defaults!$K$40*(lookup_tables!B60/100) -> 283.4
A61: 49 | B61: 44.9 | C61: =defaults!$K$40*(lookup_tables!B61/100) -> 291.85
A62: 50 | B62: 46.2 | C62: =defaults!$K$40*(lookup_tables!B62/100) -> 300.3
A63: 51 | B63: 46.2 | C63: =defaults!$K$40*(lookup_tables!B63/100) -> 300.3
A64: 52 | B64: 47.5 | C64: =defaults!$K$40*(lookup_tables!B64/100) -> 308.75
A65: 53 | B65: 49.075 | C65: =defaults!$K$40*(lookup_tables!B65/100) -> 318.9875
A66: 54 | B66: 49.075 | C66: =defaults!$K$40*(lookup_tables!B66/100) -> 318.9875
A67: 55 | B67: 50.65 | C67: =defaults!$K$40*(lookup_tables!B67/100) -> 329.225
A68: 56 | B68: 52.225 | C68: =defaults!$K$40*(lookup_tables!B68/100) -> 339.4625
A69: 57 | B69: 52.225 | C69: =defaults!$K$40*(lookup_tables!B69/100) -> 339.4625
A70: 58 | B70: 53.8 | C70: =defaults!$K$40*(lookup_tables!B70/100) -> 349.7
A71: 59 | B71: 53.8 | C71: =defaults!$K$40*(lookup_tables!B71/100) -> 349.7
A72: 60 | B72: 55.375 | C72: =defaults!$K$40*(lookup_tables!B72/100) -> 359.9375
A73: 61 | B73: 55.375 | C73: =defaults!$K$40*(lookup_tables!B73/100) -> 359.9375
A74: 62 | B74: 56.95 | C74: =defaults!$K$40*(lookup_tables!B74/100) -> 370.175
A75: 63 | B75: 58.525 | C75: =defaults!$K$40*(lookup_tables!B75/100) -> 380.4125
A76: 64 | B76: 58.525 | C76: =defaults!$K$40*(lookup_tables!B76/100) -> 380.4125
A77: 65 | B77: 60.1 | C77: =defaults!$K$40*(lookup_tables!B77/100) -> 390.65
A78: 66 | B78: 61.425 | C78: =defaults!$K$40*(lookup_tables!B78/100) -> 399.2625
A79: 67 | B79: 61.425 | C79: =defaults!$K$40*(lookup_tables!B79/100) -> 399.2625
A80: 68 | B80: 62.75 | C80: =defaults!$K$40*(lookup_tables!B80/100) -> 407.875
A81: 69 | B81: 64.075 | C81: =defaults!$K$40*(lookup_tables!B81/100) -> 416.4875
A82: 70 | B82: 64.075 | C82: =defaults!$K$40*(lookup_tables!B82/100) -> 416.4875
A83: 71 | B83: 65.4 | C83: =defaults!$K$40*(lookup_tables!B83/100) -> 425.1
A84: 72 | B84: 65.4 | C84: =defaults!$K$40*(lookup_tables!B84/100) -> 425.1
A85: 73 | B85: 66.725 | C85: =defaults!$K$40*(lookup_tables!B85/100) -> 433.7125
A86: 74 | B86: 67.3875 | C86: =defaults!$K$40*(lookup_tables!B86/100) -> 438.01875
A87: 75 | B87: 68.05 | C87: =defaults!$K$40*(lookup_tables!B87/100) -> 442.325
A88: 76 | B88: 69.375 | C88: =defaults!$K$40*(lookup_tables!B88/100) -> 450.9375
A89: 77 | B89: 70.0375 | C89: =defaults!$K$40*(lookup_tables!B89/100) -> 455.24375
A90: 78 | B90: 70.7 | C90: =defaults!$K$40*(lookup_tables!B90/100) -> 459.55
A91: 79 | B91: 71.95625 | C91: =defaults!$K$40*(lookup_tables!B91/100) -> 467.715625
A92: 80 | B92: 71.956 | C92: =defaults!$K$40*(lookup_tables!B92/100) -> 467.714
A93: 81 | B93: 73.2125 | C93: =defaults!$K$40*(lookup_tables!B93/100) -> 475.88125
A94: 82 | B94: 74.468 | C94: =defaults!$K$40*(lookup_tables!B94/100) -> 484.042
A95: 83 | B95: 75.0965 | C95: =defaults!$K$40*(lookup_tables!B95/100) -> 488.12725
A96: 84 | B96: 75.725 | C96: =defaults!$K$40*(lookup_tables!B96/100) -> 492.2125
A97: 85 | B97: 75.725 | C97: =defaults!$K$40*(lookup_tables!B97/100) -> 492.2125
A98: 86 | B98: 76.98125 | C98: =defaults!$K$40*(lookup_tables!B98/100) -> 500.378125
A99: 87 | B99: 76.98 | C99: =defaults!$K$40*(lookup_tables!B99/100) -> 500.37
A100: 88 | B100: 78.2375 | C100: =defaults!$K$40*(lookup_tables!B100/100) -> 508.54375
A101: 89 | B101: 79.49375 | C101: =defaults!$K$40*(lookup_tables!B101/100) -> 516.709375
A102: 90 | B102: 79.49 | C102: =defaults!$K$40*(lookup_tables!B102/100) -> 516.685
A103: 91 | B103: 80.75 | C103: =defaults!$K$40*(lookup_tables!B103/100) -> 524.875
A104: 92 | B104: 82.00625 | C104: =defaults!$K$40*(lookup_tables!B104/100) -> 533.040625
A105: 93 | B105: 82.006 | C105: =defaults!$K$40*(lookup_tables!B105/100) -> 533.039
A106: 94 | B106: 83.2625 | C106: =defaults!$K$40*(lookup_tables!B106/100) -> 541.20625
A107: 95 | B107: 84.51875 | C107: =defaults!$K$40*(lookup_tables!B107/100) -> 549.371875
A108: 96 | B108: 85.146875 | C108: =defaults!$K$40*(lookup_tables!B108/100) -> 553.4546875
A109: 97 | B109: 85.775 | C109: =defaults!$K$40*(lookup_tables!B109/100) -> 557.5375
A110: 98 | B110: 85.775 | C110: =defaults!$K$40*(lookup_tables!B110/100) -> 557.5375
A111: 99 | B111: 87.03125 | C111: =defaults!$K$40*(lookup_tables!B111/100) -> 565.703125
A112: 100 | B112: 87.659375 | C112: =defaults!$K$40*(lookup_tables!B112/100) -> 569.7859375
A113: 101 | B113: 88.2875 | C113: =defaults!$K$40*(lookup_tables!B113/100) -> 573.86875
A114: 102 | B114: 89.54375 | C114: =defaults!$K$40*(lookup_tables!B114/100) -> 582.034375
A115: 103 | B115: 90.171875 | C115: =defaults!$K$40*(lookup_tables!B115/100) -> 586.1171875
A116: 104 | B116: 90.8 | C116: =defaults!$K$40*(lookup_tables!B116/100) -> 590.2

Sheet Input sheet
H7: Heifer Rearing Cost Calculator
H9: Input Sheet
H11: Default values are loaded here but we suggest you use your own values if you have them.
H13: Replacement heifer calf value (£/hd) | I13: 200 | L13: Water (£/hd) | M13: 29
H15: Beef calf value (£/hd) | I15: 150 | L15: Electricity (£/hd) | M15: 22
H17: Milk powder (£/T) | I17: 1500 | L17: Consumables (£/hd) | M17: 16.5
H19: Calf starter mix (£/T) | I19: 230 | L19: Interest rate (%) | M19: 4
H21: Rearing concentrate (£/T) | I21: 210 | L21: Land opportunity cost (£/ha) | M21: 265
H23: Feeding straw (£/T) | I23: 41 | L23: AI price (£/service) | M23: 50
H25: Feeding hay (£/T) | I25: 50 | L25: Conception rate to AI (%) | M25: 40
H27: Bedding material (£/T) | I27: 36 | L27: Pregnancy Testing (£/hd) | M27: 10
H29: Disposal cost (£/carcase) | I29: 30 | L29: Milk price (ppl) | M29: 21
H31: Labour cost (£/hr) | I31: 10 | L31: Margin over Puchased Feed (ppl) | M31: 15
H34: Age at first calving (months) | I34: 24 | L34: Mature cow weight (kg) | M34: 650
H36: Age at weaning (weeks) | I36: 8 | L36: Heifer lactation yield (l) | M36: 8000
H39: Birth to Weaning
H41: Vet & Med, inc Vaccinations | I41: 12.5 | L41: Power & Machinery (incl electricity, excluding forage costs) | M41: 10
H43: Mortality Rate | I43: 10.5 | L43: Labour (includes bedding and cleaning out) | M43: 25
H46: Weaning to Conception
H48: Vet & Med, inc Vaccinations | I48: 12 | L48: Power & Machinery (incl electricity, excluding forage costs) | M48: 15
H50: Mortality Rate | I50: 3.4 | L50: Labour (includes bedding and cleaning out) | M50: 75
H53: Conception to Calving
H55: Vet & Med, inc Vaccinations | I55: 20 | L55: Power & Machinery (incl electricity, excluding forage costs) | M55: 15
H57: Mortality Rate | I57: 4.2 | L57: Labour (includes bedding and cleaning out) | M57: 120
